bitfinex-derivatives/quotes_SOLF0:USTF0_20241021
["timestamp","ask_amount","ask_price","bid_price","bid_amount"]
[1729518292937,3.0654,163.17,163.01,8.76]
[1729518293237,3.03891717,163.16,163.11,3.0664]
[1729518293432,3.0656,163.16,163.07,8.76]
[1729518293733,3.03324892,163.17,163.08,4.0109]
[1729518293934,8.76,163.23,163.08,4.0109]
[1729518294234,8.76,163.24,163.14,3.0657]
[1729518294531,3.0647,163.21,163.08,4.0109]
[1729518294736,8.76,163.24,163.09,8.76]
[1729518295034,8.76,163.24,163.15,3.0656]
[1729518295425,3.065,163.19,163.15,3.0656]
[1729518295629,8.76,163.24,163.12,3.0662]
[1729518295933,8.76,163.24,163.09,8.76]
[1729518296331,8.76,163.24,163.14,3.0659]
[1729518296529,8.76,163.24,163.09,8.76]
[1729518296530,3.065,163.19,163.09,8.76]
[1729518296925,8.76,163.24,163.15,3.0656]
[1729518297126,3.0649,163.2,163.15,3.0656]
[1729518297333,2.6276,163.27,163.08,4.0109]
[1729518297530,8.76,163.26,163.14,3.0658]
[1729518297725,3.0651,163.19,163.14,3.0658]
[1729518297927,3.08363065,163.2,163.13,3.066]
[1729518298127,27.18,163.26,163.1,8.76]
[1729518298626,27.18,163.26,163.14,3.0658]
[1729518298825,8.76,163.26,163.12,8.76]
[1729518299334,3.0649,163.2,163.12,8.76]
[1729518299732,8.76,163.26,163.12,8.76]
[1729518300833,8.76,163.26,163.08,4.0109]
[1729518301234,8.76,163.26,163.09,8.76]
[1729518302034,2.6276,163.27,163.08,4.0109]
[1729518302233,21.0476,163.27,163.09,8.38]
[1729518302638,27.85244322,163.26,163.08,4.0109]
[1729518302833,3.0654,163.17,163.09,8.38]
[1729518303039,3.13590981,163.2,163.08,4.0109]
[1729518303236,3.0653,163.18,163.14,3.0657]
[1729518303437,8.38,163.23,163.1,8.38]
[1729518303739,3.0649,163.2,163.16,3.0655]
[1729518304144,8.38,163.23,163.1,8.38]
[1729518304641,9.4390755,163.26,163.1,8.38]
[1729518305145,3.0645,163.22,163.1,8.38]
[1729518305438,11.0076,163.27,163.1,8.38]
[1729518305637,3.0644,163.22,163.18,3.0651]
[1729518305833,3.0644,163.22,163.16,8.38]
[1729518306036,11.0076,163.27,163.16,8.38]
[1729518306331,3.0647,163.21,163.16,8.38]
[1729518306530,11.0076,163.27,163.16,8.38]
[1729518306739,11.0076,163.27,163.08,10.1448]
[1729518306740,3.0653,163.17,163.14,3.0659]
[1729518306934,11.0076,163.27,163.14,8.38]
[1729518307135,20.45745151,163.27,163.14,8.38]
[1729518307350,3.0652,163.18,163.14,11.4458]
[1729518307640,3.0652,163.18,163.14,8.38]
[1729518307838,3.0652,163.18,163.15,3.0657]
[1729518308038,3.0654,163.17,163.08,4.0109]
[1729518308341,9.44985151,163.26,163.14,3.0658]
[1729518308535,3.065,163.19,163.09,8.38]
[1729518308742,9.44985151,163.26,163.09,8.38]
[1729518308942,9.44985151,163.26,163.14,3.0657]
[1729518309241,3.065,163.19,163.09,8.38]
[1729518309443,3.065,163.19,163.15,3.0656]
[1729518311038,3.065,163.19,163.09,8.38]
[1729518311337,3.13223398,163.2,163.09,8.38]
[1729518311545,18.42,163.26,163.08,4.0109]
[1729518311746,3.0645,163.22,163.1,8.38]
[1729518311946,6.1278,163.25,163.14,3.0657]
[1729518312632,11.0076,163.27,163.1,8.38]
[1729518312832,20.46877814,163.27,163.1,8.38]
[1729518313143,3.0652,163.18,163.14,3.0658]
[1729518313638,3.0647,163.21,163.17,3.0652]
[1729518313840,2.6276,163.27,163.1,8.38]
[1729518314243,3.0647,163.21,163.1,8.38]
[1729518314443,2.6276,163.27,163.1,8.38]
[1729518314645,3.0644,163.22,163.15,3.0657]
[1729518314852,2.6276,163.27,163.1,8.38]
[1729518315841,3.0642,163.23,163.19,3.0649]
[1729518316145,3.04066896,163.29,163.18,8.38]
[1729518316445,3.0643,163.23,163.18,8.38]
[1729518316840,3.0643,163.23,163.19,3.0649]
[1729518317036,9.45929766,163.3,163.18,8.38]
[1729518317244,2.5621,163.3,163.19,1.3245]
[1729518317440,3.0635,163.27,163.19,1.3245]
[1729518317636,32.51803742,163.33,163.19,1.3245]
[1729518317837,9.45929766,163.32,163.19,1.3245]
[1729518318039,4.32476938,163.32,163.19,1.3245]
[1729518318245,3.0632,163.29,163.2,3.0647]
[1729518318436,4.32476938,163.32,163.19,1.3245]
[1729518318853,3.0641,163.24,163.19,4.3893]
[1729518319355,3.0639,163.25,163.2,3.0647]
[1729518319540,4.32476938,163.32,163.19,9.7045]
[1729518319744,4.32476938,163.32,163.19,1.3245]
[1729518319941,1.3073,163.32,163.2,8.38]
[1729518320147,35.58523296,163.44,163.19,1.3245]
[1729518320349,2.5943,163.43,163.26,3.0635]
[1729518320546,9.3759,163.5,163.27,9.7245]
[1729518320547,4.06706647,163.5,163.27,9.7245]
[1729518320749,1.2839,163.49,163.28,74.64]
[1729518320948,3.0601,163.45,163.38,3.0613]
[1729518321154,1.2839,163.49,163.38,8.38]
[1729518321350,1.2839,163.49,163.39,1.37]
[1729518321851,1.3104,163.51,163.39,1.37]
[1729518322048,8.38,163.55,163.39,1.37]
[1729518322254,3.0589,163.52,163.45,3.0599]
[1729518322848,3.0589,163.52,163.44,8.38]
[1729518323056,11.46696607,163.55,163.48,3.0594]
[1729518323057,3.0583,163.55,163.48,3.0594]
[1729518323250,1.3104,163.56,163.44,8.38]
[1729518323453,10.6334,163.62,163.44,8.38]
[1729518323753,3.0582,163.56,163.49,3.0591]
[1729518324143,3.0589,163.52,163.44,3.0602]
[1729518324343,8.38,163.56,163.4,2.5335]
[1729518324551,20.6734,163.62,163.4,2.5335]
[1729518324552,1.2575,163.51,163.4,9.6518]
[1729518324749,1.2575,163.51,163.4,1.2718]
[1729518324945,1.2575,163.51,163.4,8.38]
[1729518325154,1.2575,163.51,163.34,1.3697]
[1729518325354,1.3173,163.5,163.34,9.7497]
[1729518325556,8.38,163.49,163.34,9.7497]
[1729518325758,11.50456469,163.49,163.34,9.7497]
[1729518325957,3.0606,163.43,163.36,3.0616]
[1729518326258,3.0606,163.43,163.34,9.7497]
[1729518326259,1.3173,163.5,163.34,9.7497]
[1729518326551,1.2575,163.51,163.34,9.7497]
[1729518327253,1.2575,163.51,163.44,3.0601]
[1729518327254,4.3164,163.51,163.44,3.0601]
[1729518327451,4.3164,163.51,163.44,8.38]
[1729518327650,3.12923649,163.58,163.44,8.38]
[1729518327952,8.38,163.59,163.45,2.7112]
[1729518328353,3.058,163.57,163.45,2.7112]
[1729518328546,3.058,163.57,163.45,4.0794]
[1729518329052,3.0569,163.63,163.56,3.058]
[1729518329250,1.3752,163.66,163.54,8.38]
[1729518329553,1.3752,163.66,163.55,8.38]
[1729518329749,4.42636489,163.66,163.56,8.38]
[1729518329945,1.3752,163.66,163.56,8.38]
[1729518330151,3.04840947,163.65,163.56,8.38]
[1729518330549,3.057,163.62,163.56,8.38]
[1729518330754,3.057,163.62,163.46,3.12188725]
[1729518331063,3.04840947,163.65,163.47,8.18]
[1729518331261,3.0569,163.63,163.47,8.18]
[1729518331560,1.3752,163.66,163.47,8.18]
[1729518331857,3.0569,163.62,163.55,3.058]
[1729518332157,18.42,163.64,163.45,4.0794]
[1729518332367,18.42,163.64,163.42,8.18]
[1729518332659,1.0,163.61,163.39,9.4978]
[1729518332857,1.0,163.61,163.4,3.061]
[1729518333057,1.0,163.61,163.39,8.18]
[1729518333965,3.06,163.46,163.39,8.18]
[1729518334664,3.06,163.46,163.39,11.2411]
[1729518334853,3.09857239,163.49,163.28,2.6026]
[1729518335057,21.1373,163.49,163.31,3.0625]
[1729518335260,21.1373,163.49,163.21,3.00824839]
[1729518335261,0.9865,163.48,163.21,8.18]
[1729518335469,0.9865,163.48,163.21,10.7391]
[1729518335657,1.9865,163.48,163.21,10.7391]
[1729518336562,3.0625,163.32,163.24,3.0638]
[1729518337069,66.16,163.41,163.3,3.0628]
[1729518337361,66.16,163.41,163.21,10.7391]
[1729518337362,8.18,163.4,163.21,10.7391]
[1729518337958,11.28390361,163.41,163.21,10.7391]
[1729518339058,3.0625,163.32,163.25,3.0638]
[1729518339261,8.18,163.33,163.21,1.2932]
[1729518339555,21.52390361,163.41,163.17,1.2928]
[1729518339556,3.0639,163.25,163.18,3.065]
[1729518339964,11.17310555,163.29,163.17,1.2928]
[1729518340364,8.18,163.29,163.2,3.0647]
[1729518341168,9.5472,163.32,163.17,1.2928]
[1729518341460,9.5573,163.35,163.17,1.2928]
[1729518342063,3.0632,163.29,163.21,3.0644]
[1729518342262,3.09903188,163.32,163.21,8.18]
[1729518342470,9.5573,163.35,163.21,8.18]
[1729518342662,3.0636,163.27,163.2,3.0647]
[1729518342860,3.0636,163.27,163.17,9.4728]
[1729518342861,3.11743286,163.31,163.17,9.4728]
[1729518343060,9.5573,163.35,163.17,9.4728]
[1729518343370,3.0629,163.31,163.17,9.4728]
[1729518343564,9.5573,163.35,163.17,9.4728]
[1729518343965,3.063,163.3,163.23,3.064]
[1729518344267,9.5573,163.35,163.17,9.4728]
[1729518344268,3.02665469,163.32,163.17,9.4728]
[1729518344467,9.5573,163.35,163.21,3.0645]
[1729518344872,3.0634,163.28,163.21,3.0645]
[1729518345865,3.0631,163.29,163.17,9.4728]
[1729518346067,27.9773,163.35,163.17,9.4728]
[1729518346068,9.5573,163.35,163.17,9.4728]
[1729518346466,3.063,163.3,163.24,3.064]
[1729518347073,3.0631,163.29,163.24,3.064]
[1729518347467,3.0631,163.29,163.17,9.4728]
[1729518347468,9.5573,163.35,163.17,9.4728]
[1729518347663,3.0632,163.29,163.23,3.0642]
[1729518348173,3.10289882,163.32,163.23,3.0642]
[1729518348369,3.0632,163.29,163.23,3.0642]
[1729518348574,9.5573,163.35,163.21,3.0644]
[1729518348575,3.1220331,163.32,163.21,3.0644]
[1729518348874,3.0634,163.28,163.2,8.18]
[1729518349278,3.0634,163.28,163.22,3.0643]
[1729518349576,3.0635,163.27,163.22,3.0643]
[1729518349879,27.9773,163.35,163.2,8.18]
[1729518350176,3.0635,163.27,163.2,8.18]
[1729518350380,3.0635,163.27,163.22,3.0644]
[1729518350872,2.99077277,163.3,163.22,3.0644]
[1729518351068,8.18,163.29,163.15,9.4594]
[1729518351272,9.5488,163.28,163.15,9.4594]
[1729518351475,8.18,163.27,163.15,9.4594]
[1729518351669,3.08851214,163.26,163.15,9.4594]
[1729518352273,3.0645,163.22,163.17,3.0653]
[1729518352468,21.53550748,163.26,163.12,2.5572]
[1729518352870,1.373,163.25,163.12,2.5572]
[1729518353277,3.0648,163.2,163.16,3.0654]
[1729518353475,1.373,163.25,163.12,2.5572]
[1729518353980,3.0649,163.19,163.14,3.0658]
[1729518354272,1.373,163.25,163.12,2.5572]
[1729518354482,3.0652,163.18,163.13,3.0659]
[1729518354872,8.18,163.21,163.08,1.3535]
[1729518355074,8.18,163.21,163.08,9.5335]
[1729518355277,3.0661,163.14,163.09,3.0668]
[1729518355574,3.04140294,163.13,163.05,1.295]
[1729518355776,8.18,163.21,163.05,1.295]
[1729518356468,3.066,163.14,163.08,3.0668]
[1729518356875,3.08037168,163.15,163.08,3.0668]
[1729518357076,3.0662,163.13,163.08,3.0668]
[1729518357272,3.02912932,163.14,163.07,3.0672]
[1729518357575,26.6,163.21,163.05,1.295]
[1729518358077,8.18,163.21,163.05,1.295]
[1729518358875,3.0655,163.17,163.05,1.295]
[1729518359071,3.13848499,163.17,163.05,1.295]
[1729518359276,3.0652,163.18,163.13,3.0659]
[1729518359579,66.22,163.24,163.05,1.295]
[1729518359580,8.18,163.2,163.08,8.18]
[1729518359882,3.0654,163.17,163.1,3.0665]
[1729518360074,1.2628,163.19,163.08,8.18]
[1729518360474,3.0655,163.17,163.08,8.18]
[1729518360676,66.22,163.24,163.08,8.18]
[1729518360982,8.26,163.22,163.08,8.18]
[1729518361278,3.0651,163.19,163.14,3.0658]
[1729518362178,3.0651,163.19,163.15,3.0657]
[1729518362380,3.0655,163.16,163.05,1.295]
[1729518362579,26.68,163.22,163.05,1.295]
[1729518362580,3.10123684,163.17,163.05,1.295]
[1729518362779,26.68,163.22,163.11,3.0664]
[1729518362980,8.26,163.22,163.05,1.295]
[1729518363480,3.0653,163.17,163.13,3.0661]
[1729518363985,3.0657,163.16,163.11,3.0663]
[1729518364281,8.26,163.22,163.09,8.26]
[1729518365179,67.4828,163.24,163.09,8.26]
[1729518365379,75.7428,163.24,163.09,8.26]
[1729518365783,1.373,163.25,163.09,8.26]
[1729518365975,8.26,163.29,163.09,8.26]
[1729518365976,1.3093,163.29,163.09,8.26]
[1729518366289,3.0635,163.27,163.23,3.0641]
[1729518366981,1.3093,163.29,163.19,8.26]
[1729518367182,3.0633,163.28,163.19,8.26]
[1729518367883,3.0633,163.28,163.2,1.3407]
[1729518368385,3.10303859,163.3,163.2,1.3407]
[1729518368581,3.10303859,163.3,163.19,8.26]
[1729518368582,26.68,163.32,163.15,8.26]
[1729518368981,3.0641,163.24,163.15,8.26]
[1729518369181,29.67280388,163.32,163.15,8.26]
[1729518369382,29.67280388,163.32,163.2,3.0646]
[1729518369582,29.67280388,163.32,163.15,8.26]
[1729518369985,29.67280388,163.32,163.18,3.065]
[1729518370191,35.79790388,163.32,163.13,1.3778]
[1729518370788,18.42,163.3,163.13,1.3778]
[1729518371181,3.0649,163.2,163.15,3.0656]
[1729518371385,3.1283596,163.22,163.13,1.3778]
[1729518371586,8.26,163.24,163.12,1.2873]
[1729518371783,1.3048,163.21,163.12,1.2873]
[1729518371987,4.35123003,163.21,163.08,75.8258]
[1729518372290,19.7248,163.21,163.1,3.0665]
[1729518372690,22.76294502,163.21,163.1,3.0665]
[1729518373282,4.34294502,163.21,163.11,3.0663]
[1729518373482,4.34294502,163.21,163.08,1.3058]
[1729518374188,3.0654,163.17,163.08,1.3058]
[1729518374392,3.0654,163.17,163.12,3.0662]
[1729518374914,4.34294502,163.21,163.14,3.0657]
[1729518375107,4.34294502,163.21,163.08,1.3058]
[1729518375304,3.0657,163.16,163.11,3.0663]
[1729518375804,3.0659,163.14,163.09,3.0667]
[1729518376010,4.34294502,163.21,163.08,1.3058]
[1729518376505,4.34294502,163.21,163.14,3.0658]
[1729518376903,1.3048,163.21,163.08,1.3058]
[1729518377202,1.3048,163.21,163.16,3.0654]
[1729518377404,1.3048,163.21,163.08,1.3058]
[1729518377607,3.0651,163.18,163.08,1.3058]
[1729518377801,1.3048,163.21,163.08,1.3058]
[1729518378207,3.0654,163.17,163.08,1.3058]
[1729518378603,3.0652,163.18,163.13,3.0659]
[1729518378801,3.0652,163.18,163.08,1.3058]
[1729518379003,1.3048,163.21,163.03,9.6011]
[1729518379210,3.0658,163.15,163.11,3.0663]
[1729518379510,1.3048,163.21,163.11,3.0663]
[1729518379705,3.0659,163.14,163.09,3.0667]
[1729518379904,3.0659,163.14,163.04,1.3305]
[1729518380209,1.3048,163.21,163.06,8.26]
[1729518380408,3.0658,163.15,163.11,3.0664]
[1729518380604,1.3048,163.21,163.06,8.26]
[1729518380912,3.0654,163.17,163.12,3.0661]
[1729518381113,1.3048,163.21,163.12,3.0661]
[1729518381403,3.0655,163.16,163.06,8.26]
[1729518381609,1.3048,163.21,163.12,3.0661]
[1729518382012,3.0654,163.17,163.12,3.0661]
[1729518382304,1.3048,163.21,163.12,3.0661]
[1729518382506,1.3048,163.21,163.06,8.26]
[1729518382810,3.066,163.14,163.06,8.26]
[1729518383010,3.066,163.14,163.09,3.0667]
[1729518383211,8.26,163.16,163.04,1.3305]
[1729518383509,1.2938,163.15,163.04,1.3305]
[1729518383700,1.2938,163.15,163.03,1.3411]
[1729518383905,1.2938,163.15,163.0,25.0]
[1729518383906,0.9912,163.14,163.0,25.0]
[1729518384299,3.0678,163.04,163.0,25.0]
[1729518384509,3.03818245,163.05,163.0,25.0]
[1729518384809,26.68,163.1,163.0,25.0]
[1729518385004,3.0683,163.01,163.0,25.0]
[1729518385202,3.0683,163.01,163.0,14.31025925]
[1729518385605,6.16483226,163.01,163.0,14.31025925]
[1729518386006,3.0683,163.01,163.0,11.31025925]
[1729518386704,3.0681,163.02,163.0,11.31025925]
[1729518387113,3.05814423,163.04,163.0,11.31025925]
[1729518387311,69.31207859,163.19,163.0,11.31025925]
[1729518387610,8.26,163.18,163.0,11.31025925]
[1729518387813,9.26,163.18,163.0,11.31025925]
[1729518388204,18.42,163.17,163.0,11.31025925]
[1729518388605,3.0677,163.05,163.0,11.31025925]
[1729518389014,8.26,163.09,163.0,11.31025925]
[1729518389312,11.36792798,163.09,163.0,11.31025925]
[1729518390307,18.42,163.09,163.0,3.26025925]
[1729518390510,3.0683,163.01,163.0,3.26025925]
[1729518390808,14.28966714,163.01,163.0,3.26025925]
[1729518391008,11.2083,163.01,163.0,3.26025925]
[1729518391408,6.18621845,163.01,163.0,3.26025925]
[1729518391609,14.32621845,163.01,163.0,3.26025925]
[1729518392409,14.34621845,163.01,163.0,3.26025925]
[1729518393506,32.76621845,163.01,163.0,3.26025925]
[1729518394715,29.69791845,163.01,162.85,3.9658]
[1729518394903,3.0701,162.92,162.87,3.0709]
[1729518395207,8.16,162.95,162.85,3.9658]
[1729518395408,3.0703,162.91,162.85,7.0371]
[1729518395615,3.0703,162.91,162.85,3.9658]
[1729518396105,21.53791845,163.01,162.85,3.9658]
[1729518396106,8.16,162.97,162.85,3.9658]
[1729518398003,3.0699,162.93,162.88,3.0707]
[1729518398816,3.0703,162.91,162.86,3.0711]
[1729518399113,8.16,162.97,162.85,3.9658]
[1729518399512,3.0699,162.93,162.88,3.0708]
[1729518401015,8.16,162.97,162.88,3.0708]
[1729518401411,8.16,162.97,162.75,3.0061243]
[1729518401615,8.16,162.97,162.86,3.0711]
[1729518402006,8.16,162.97,162.76,3.9662]
[1729518402215,3.0703,162.91,162.86,3.0711]
[1729518402417,8.16,162.97,162.86,3.0711]
[1729518402612,3.07,162.92,162.78,6.1453]
[1729518402811,8.16,162.97,162.78,6.1453]
[1729518403207,3.0704,162.9,162.78,6.1453]
[1729518403415,8.16,162.97,162.85,3.0712]
[1729518403609,8.16,162.97,162.86,3.908]
[1729518404007,8.16,162.97,162.86,2.5666]
[1729518405018,3.0704,162.91,162.86,2.5666]
[1729518405516,8.16,162.97,162.86,2.5666]
[1729518405717,3.0704,162.9,162.86,2.5666]
[1729518406218,13.95434751,162.92,162.88,3.0706]
[1729518406419,7.78,162.92,162.86,2.5666]
[1729518406622,7.78,162.95,162.86,2.5666]
[1729518406823,7.78,162.95,162.87,1.3045]
[1729518407122,3.07,162.93,162.89,3.0704]
[1729518407510,3.11791845,163.01,162.87,9.0845]
[1729518407809,7.78,163.0,162.87,9.0845]
[1729518408012,7.78,163.01,162.87,9.0845]
[1729518408719,3.0692,162.97,162.87,9.0845]
[1729518409119,7.78,163.01,162.87,9.0845]
[1729518410314,132.45710745,163.06,162.87,9.0845]
[1729518410518,7.78,163.05,162.96,3.0691]
[1729518410722,132.45710745,163.06,162.96,3.0691]
[1729518410915,7.78,163.05,162.96,3.0691]
[1729518411424,3.0681,163.03,162.96,3.0691]
[1729518411624,7.78,163.05,162.87,9.0845]
[1729518411825,7.78,163.05,162.93,3.0697]
[1729518412132,7.78,163.05,162.87,9.0845]
[1729518412318,7.78,163.05,162.93,3.0697]
[1729518412523,26.2,163.05,162.87,1.3045]
[1729518412726,26.2,163.05,162.88,7.78]
[1729518412922,26.2,163.05,162.92,3.0699]
[1729518413123,3.0693,162.96,162.92,3.0699]
[1729518413320,7.78,162.99,162.87,1.3045]
[1729518413523,7.78,163.0,162.88,7.78]
[1729518413717,3.0688,162.99,162.88,7.78]
[1729518413914,7.78,163.0,162.92,3.0698]
[1729518414418,7.78,163.0,162.88,7.78]
[1729518414617,7.78,163.0,162.94,3.0695]
[1729518414823,3.0688,162.99,162.88,7.78]
[1729518415022,7.78,163.0,162.93,3.0697]
[1729518415418,7.78,163.0,162.88,7.78]
[1729518415618,7.78,163.0,162.94,3.0695]
[1729518416020,18.42,163.05,162.88,7.78]
[1729518416218,132.45710745,163.06,162.88,7.78]
[1729518416423,7.78,163.1,162.88,7.78]
[1729518416827,7.78,163.1,162.93,6.1396]
[1729518417022,3.0679,163.04,162.94,2.5748]
[1729518417219,7.78,163.1,162.95,1.3423]
[1729518417220,26.2,163.1,162.95,1.3423]
[1729518417723,3.0687,162.99,162.95,1.3423]
[1729518418030,3.0687,162.99,162.96,3.0692]
[1729518418231,3.14652837,163.02,162.96,3.0692]
[1729518418430,7.78,163.05,162.95,1.3423]
[1729518418728,7.78,163.05,162.94,2.5748]
[1729518418729,35.34735368,163.05,162.94,2.5748]
[1729518418925,3.0692,162.97,162.94,2.5748]
[1729518419625,3.0694,162.96,162.89,7.78]
[1729518419827,3.0694,162.96,162.89,10.4488]
[1729518420024,7.78,163.0,162.9,3.0702]
[1729518420330,7.78,163.0,162.89,2.6688]
[1729518420723,7.78,163.0,162.91,3.0702]
[1729518421024,7.78,163.0,162.89,2.6688]
[1729518421528,3.0694,162.96,162.89,2.6688]
[1729518421731,7.78,163.0,162.89,2.6688]
[1729518422234,7.78,163.02,162.89,2.6688]
[1729518422625,7.78,163.02,162.93,3.0697]
[1729518423232,3.0689,162.98,162.93,3.0697]
[1729518423436,7.78,163.02,162.89,2.6688]
[1729518423732,3.0686,163.0,162.89,2.6688]
[1729518424028,7.78,163.02,162.89,2.6688]
[1729518424227,7.78,163.02,162.93,3.0697]
[1729518424422,3.069,162.98,162.93,3.0697]
[1729518424629,7.78,163.02,162.95,3.0693]
[1729518424827,10.8482,163.02,162.89,2.6688]
[1729518425028,3.01195368,163.05,162.89,2.6688]
[1729518425228,7.42,163.06,162.99,3.0686]
[1729518425422,24.5534,163.1,162.99,3.0686]
[1729518425628,7.42,163.07,162.99,3.0686]
[1729518425832,10.45395466,163.07,162.99,3.0686]
[1729518426032,3.0677,163.05,162.94,7.42]
[1729518426232,129.33133526,163.11,162.94,7.42]
[1729518426532,3.067,163.08,163.03,3.0678]
[1729518427128,3.067,163.09,163.04,3.0677]
[1729518427330,7.42,163.13,163.02,3.8255]
[1729518427727,3.0667,163.1,163.06,3.0674]
[1729518427931,7.42,163.13,163.02,3.8255]
[1729518428534,25.84,163.13,163.02,3.8255]
[1729518428831,25.84,163.13,162.99,3.0687]
[1729518429034,25.84,163.13,162.98,7.42]
[1729518429532,7.42,163.13,162.98,7.42]
[1729518430034,25.84,163.13,162.98,7.42]
[1729518430333,3.0681,163.02,162.97,3.0691]
[1729518430633,3.04935807,163.04,162.94,11.3023]
[1729518430839,7.42,163.04,162.94,11.3023]
[1729518431033,3.03461797,163.03,162.94,11.3023]
[1729518431727,3.03461797,163.03,162.97,3.069]
[1729518431925,7.42,163.04,162.94,11.3023]
[1729518432235,3.0676,163.05,163.0,3.0684]
[1729518432636,3.10255775,163.07,162.94,11.3023]
[1729518432839,3.0673,163.07,163.02,3.068]
[1729518433231,18.42,163.16,162.94,11.3023]
[1729518433431,7.42,163.15,162.94,11.3023]
[1729518433933,3.0671,163.08,163.03,3.0678]
[1729518434134,69.47300399,163.17,162.99,7.42]
[1729518434437,69.47300399,163.17,163.0,7.42]
[1729518434636,3.0665,163.11,163.06,3.0673]
[1729518435135,7.42,163.16,163.04,3.0676]
[1729518435438,7.42,163.16,163.02,3.7829]
[1729518435741,3.0665,163.11,163.06,3.0672]
[1729518436435,7.42,163.1,162.93,7.42]
[1729518436637,7.42,163.09,162.96,2.616]
[1729518436831,94.02380399,163.17,162.96,1.2986]
[1729518436832,7.42,163.08,162.96,1.2986]
[1729518437037,3.0685,163.0,162.94,3.0695]
[1729518437638,3.069,162.98,162.92,3.0699]
[1729518437935,3.069,162.98,162.91,2.5982]
[1729518438141,3.069,162.98,162.91,5.6684]
[1729518438343,3.0691,162.97,162.91,5.6684]
[1729518438639,3.0691,162.97,162.91,4.3876]
[1729518439036,3.0318447,162.99,162.91,1.3174]
[1729518439239,7.42,163.02,162.91,1.3174]
[1729518439639,3.0688,162.99,162.93,3.0697]
[1729518439934,10.46993491,163.02,162.91,1.3174]
[1729518441041,10.46993491,163.02,162.93,3.0698]
[1729518441244,10.46993491,163.02,162.91,1.3174]
[1729518442946,3.0692,162.97,162.92,3.07]
[1729518443241,10.46993491,163.02,162.92,3.07]
[1729518443435,3.0698,162.94,162.91,1.3174]
[1729518444236,3.0694,162.96,162.91,1.3174]
[1729518444436,10.46993491,163.02,162.91,1.3174]
[1729518444639,3.0687,162.99,162.92,3.0699]
[1729518444835,10.46993491,163.02,162.92,3.0699]
[1729518445739,3.0684,163.01,162.91,1.3174]
[1729518445938,41.03906487,163.13,162.92,7.42]
[1729518446149,7.42,163.12,162.98,3.0689]
[1729518446343,3.0669,163.09,162.99,3.9592]
[1729518446548,9.41518544,163.12,162.99,3.9592]
[1729518447038,7.42,163.13,162.99,3.9592]
[1729518447444,3.0668,163.1,162.99,3.9592]
[1729518447836,129.31130168,163.14,163.05,3.0674]
[1729518448037,3.11300399,163.17,163.03,7.42]
[1729518448238,7.42,163.16,163.03,7.42]
[1729518448441,3.12613477,163.15,163.03,7.42]
[1729518449147,3.0665,163.11,163.07,3.0671]
[1729518449343,7.42,163.16,163.03,7.42]
[1729518449544,3.0673,163.07,163.03,7.42]
[1729518449749,7.42,163.16,163.03,7.42]
[1729518449947,10.55184635,163.16,163.03,7.42]
[1729518450150,30.97080036,163.16,163.03,7.42]
[1729518450349,9.43973725,163.15,163.03,7.42]
[1729518450549,30.97767184,163.16,163.03,7.42]